[Event "Late-Titled-Tuesday-Blitz-February-13-2024"]
[Site "Chess.com"]
[Date "2024.02.13"]
[Round "5"]
[White "korkmaz16"]
[Black "Payyappat"]
[Result "1-0"]
[WhiteElo "2429"]
[BlackElo "2561"]
[TimeControl "180+1"]
[EndTime "14:55:30 PST"]
[Termination "korkmaz16 won by resignation"]

1. e4 {[%clk 0:03:00.9]} 1... c6 {[%clk 0:02:58.5]} 2. d4 {[%clk 0:03:00.5]}
2... d5 {[%clk 0:02:59.4]} 3. Nc3 {[%clk 0:03:00.7]} 3... dxe4 {[%clk
0:02:57.6]} 4. Nxe4 {[%clk 0:03:01.6]} 4... Nf6 {[%clk 0:02:58.5]} 5. Nxf6+
{[%clk 0:03:01.6]} 5... exf6 {[%clk 0:02:59.4]} 6. c3 {[%clk 0:03:00.8]} 6...
Bd6 {[%clk 0:02:59.6]} 7. Bd3 {[%clk 0:03:00.8]} 7... O-O {[%clk 0:03:00.5]} 8.
Qc2 {[%clk 0:03:01]} 8... Re8+ {[%clk 0:03:00.9]} 9. Ne2 {[%clk 0:03:01]} 9...
h5 {[%clk 0:03:01.2]} 10. Be3 {[%clk 0:02:57.4]} 10... Nd7 {[%clk 0:03:01]} 11.
O-O-O {[%clk 0:02:46.3]} 11... Nf8 {[%clk 0:03:00.9]} 12. c4 {[%clk 0:02:36.5]}
12... Be6 {[%clk 0:02:58.9]} 13. Nc3 {[%clk 0:02:34.7]} 13... Rc8 {[%clk
0:02:55.1]} 14. Rhe1 {[%clk 0:02:29]} 14... Bb4 {[%clk 0:02:53.8]} 15. h3 {[%clk
0:02:17.6]} 15... b5 {[%clk 0:02:51.4]} 16. c5 {[%clk 0:02:07.8]} 16... Qa5
{[%clk 0:02:40.6]} 17. a3 {[%clk 0:02:02.5]} 17... Bxc3 {[%clk 0:02:38.4]} 18.
Qxc3 {[%clk 0:02:02.7]} 18... Qxc3+ {[%clk 0:02:37.6]} 19. bxc3 {[%clk
0:02:02.7]} 19... a5 {[%clk 0:02:37.4]} 20. Bf4 {[%clk 0:01:50.3]} 20... Bb3
{[%clk 0:02:32.6]} 21. Bc2 {[%clk 0:01:46.2]} 21... Bc4 {[%clk 0:02:30.3]} 22.
Bd6 {[%clk 0:01:39.8]} 22... Ne6 {[%clk 0:02:23.5]} 23. Bf5 {[%clk 0:01:38.8]}
23... Ra8 {[%clk 0:02:19.1]} 24. g4 {[%clk 0:01:34.2]} 24... b4 {[%clk
0:02:03.9]} 25. Kb2 {[%clk 0:01:33.2]} 25... bxa3+ {[%clk 0:01:46.2]} 26. Kxa3
{[%clk 0:01:32.7]} 26... g6 {[%clk 0:01:45.3]} 27. Be4 {[%clk 0:01:28.1]} 27...
Rec8 {[%clk 0:01:17.3]} 28. gxh5 {[%clk 0:01:24.1]} 28... gxh5 {[%clk
0:01:13.7]} 29. Rg1+ {[%clk 0:01:21.6]} 29... Ng7 {[%clk 0:00:32.8]} 30. Rg2
{[%clk 0:01:16.5]} 30... Kh8 {[%clk 0:00:25.3]} 31. Rdg1 {[%clk 0:01:10.8]}
31... Rg8 {[%clk 0:00:23.9]} 32. Be7 {[%clk 0:01:01.9]} 32... f5 {[%clk
0:00:15.9]} 33. Bxc6 {[%clk 0:00:58.4]} 33... Ra6 {[%clk 0:00:11]} 34. d5 {[%clk
0:00:54.4]} 34... a4 {[%clk 0:00:07.4]} 35. Bf6 {[%clk 0:00:53.5]} 35... Rb8
{[%clk 0:00:07.8]} 36. Rxg7 {[%clk 0:00:36.6]} 36... Rb3+ {[%clk 0:00:07.2]} 37.
Ka2 {[%clk 0:00:36.9]} 37... Rb4+ {[%clk 0:00:06.4]} 38. Ka1 {[%clk 0:00:35.9]}
1-0

[Event "Late-Titled-Tuesday-Blitz-February-13-2024"]
[Site "Chess.com"]
[Date "2024.02.13"]
[Round "5"]
[White "LiamPutnam2008"]
[Black "RandomNoob04"]
[Result "1-0"]
[WhiteElo "2853"]
[BlackElo "2612"]
[TimeControl "180+1"]
[EndTime "14:55:33 PST"]
[Termination "LiamPutnam2008 won by checkmate"]

1. Nf3 {[%clk 0:03:00.9]} 1... c5 {[%clk 0:02:58.9]} 2. e3 {[%clk 0:03:00.8]}
2... Nf6 {[%clk 0:02:58.7]} 3. b3 {[%clk 0:03:01.2]} 3... d5 {[%clk 0:02:56.5]}
4. Bb2 {[%clk 0:02:58.4]} 4... a6 {[%clk 0:02:56.6]} 5. c4 {[%clk 0:02:55.4]}
5... e6 {[%clk 0:02:52.1]} 6. cxd5 {[%clk 0:02:55.7]} 6... exd5 {[%clk 0:02:53]}
7. d4 {[%clk 0:02:56]} 7... Nc6 {[%clk 0:02:53.7]} 8. Be2 {[%clk 0:02:52.6]}
8... cxd4 {[%clk 0:02:50]} 9. Nxd4 {[%clk 0:02:52.8]} 9... Bb4+ {[%clk
0:02:50.4]} 10. Bc3 {[%clk 0:02:50.6]} 10... Bxc3+ {[%clk 0:02:42.9]} 11. Nxc3
{[%clk 0:02:50.2]} 11... O-O {[%clk 0:02:43.6]} 12. O-O {[%clk 0:02:50]} 12...
Re8 {[%clk 0:02:39.1]} 13. Rc1 {[%clk 0:02:45.5]} 13... Ne5 {[%clk 0:02:35.8]}
14. Qd2 {[%clk 0:02:42.6]} 14... Bg4 {[%clk 0:02:29.2]} 15. Rfd1 {[%clk
0:02:40.7]} 15... Qd7 {[%clk 0:02:25.5]} 16. Bxg4 {[%clk 0:02:10.4]} 16... Qxg4
{[%clk 0:02:22.1]} 17. h3 {[%clk 0:02:10.8]} 17... Qg6 {[%clk 0:02:20.3]} 18.
Qc2 {[%clk 0:02:10.4]} 18... Qh6 {[%clk 0:01:47.3]} 19. Nf5 {[%clk 0:02:09.6]}
19... Qg5 {[%clk 0:01:46.5]} 20. Nxd5 {[%clk 0:01:26.3]} 20... Nxd5 {[%clk
0:01:45.4]} 21. Rxd5 {[%clk 0:01:27.2]} 21... g6 {[%clk 0:01:46]} 22. f4 {[%clk
0:01:19.2]} 22... Qh5 {[%clk 0:01:07.7]} 23. Rxe5 {[%clk 0:01:03.1]} 23... Rxe5
{[%clk 0:01:07.4]} 24. fxe5 {[%clk 0:01:03.1]} 24... gxf5 {[%clk 0:01:07.4]} 25.
Rf1 {[%clk 0:01:03.3]} 25... Qg5 {[%clk 0:00:55.4]} 26. Qxf5 {[%clk 0:00:38.1]}
26... Qxe3+ {[%clk 0:00:55.4]} 27. Kh1 {[%clk 0:00:38.3]} 27... Rf8 {[%clk
0:00:56]} 28. Qg4+ {[%clk 0:00:36.9]} 28... Kh8 {[%clk 0:00:55.7]} 29. e6 {[%clk
0:00:36.5]} 29... f6 {[%clk 0:00:40.7]} 30. Rd1 {[%clk 0:00:33]} 30... f5 {[%clk
0:00:37.3]} 31. Qc4 {[%clk 0:00:23.5]} 31... Re8 {[%clk 0:00:30.2]} 32. Rf1
{[%clk 0:00:18.5]} 32... Qxe6 {[%clk 0:00:28.4]} 33. Qd4+ {[%clk 0:00:13.5]}
33... Qe5 {[%clk 0:00:26.6]} 34. Qd7 {[%clk 0:00:13]} 34... Re7 {[%clk
0:00:22.3]} 35. Qc8+ {[%clk 0:00:13.3]} 35... Kg7 {[%clk 0:00:22]} 36. Rxf5
{[%clk 0:00:11.7]} 36... Qg3 {[%clk 0:00:19]} 37. Qf8+ {[%clk 0:00:10.7]} 37...
Kg6 {[%clk 0:00:18.6]} 38. Qf6# {[%clk 0:00:11.5]} 1-0

[Event "Late-Titled-Tuesday-Blitz-February-13-2024"]
[Site "Chess.com"]
[Date "2024.02.13"]
[Round "5"]
[White "NikolaGry"]
[Black "topce"]
[Result "1-0"]
[WhiteElo "2717"]
[BlackElo "2396"]
[TimeControl "180+1"]
[EndTime "14:55:33 PST"]
[Termination "NikolaGry won on time"]

1. d4 {[%clk 0:03:00.9]} 1... e6 {[%clk 0:02:59.3]} 2. Nf3 {[%clk 0:02:59.6]}
2... Nf6 {[%clk 0:02:59]} 3. g3 {[%clk 0:02:56.3]} 3... c5 {[%clk 0:02:56.9]} 4.
Bg2 {[%clk 0:02:56.3]} 4... g6 {[%clk 0:02:48.1]} 5. O-O {[%clk 0:02:55.2]} 5...
Na6 {[%clk 0:02:45]} 6. c4 {[%clk 0:02:52.3]} 6... d6 {[%clk 0:02:42.1]} 7. Nc3
{[%clk 0:02:51.1]} 7... Bg7 {[%clk 0:02:41.6]} 8. dxc5 {[%clk 0:02:48.4]} 8...
Nxc5 {[%clk 0:02:25.5]} 9. Bf4 {[%clk 0:02:44.1]} 9... e5 {[%clk 0:02:23.1]} 10.
Be3 {[%clk 0:02:39.5]} 10... O-O {[%clk 0:02:10.6]} 11. Nxe5 {[%clk 0:02:34.9]}
11... Ne6 {[%clk 0:01:29.6]} 12. Nd3 {[%clk 0:02:29.5]} 12... Ng4 {[%clk
0:01:26.6]} 13. Bd2 {[%clk 0:02:28.7]} 13... h5 {[%clk 0:01:00.5]} 14. h3 {[%clk
0:02:15.8]} 14... Ne5 {[%clk 0:00:57.8]} 15. Nxe5 {[%clk 0:02:11.1]} 15... dxe5
{[%clk 0:00:58.7]} 16. Be3 {[%clk 0:02:10.6]} 16... Nd4 {[%clk 0:00:57.3]} 17.
Qd2 {[%clk 0:02:02.2]} 17... Be6 {[%clk 0:00:54.5]} 18. Nd5 {[%clk 0:01:57.7]}
18... Qd7 {[%clk 0:00:42.3]} 19. Kh2 {[%clk 0:01:51]} 19... Rad8 {[%clk
0:00:39.3]} 20. Rfd1 {[%clk 0:01:40.5]} 20... b5 {[%clk 0:00:38.8]} 21. b3
{[%clk 0:01:38.9]} 21... bxc4 {[%clk 0:00:38.2]} 22. bxc4 {[%clk 0:01:36.8]}
22... Rc8 {[%clk 0:00:23.2]} 23. Rac1 {[%clk 0:01:35.2]} 23... Qa4 {[%clk
0:00:20.6]} 24. Ne7+ {[%clk 0:01:30.9]} 24... Kh7 {[%clk 0:00:20.6]} 25. Nxc8
{[%clk 0:01:30.4]} 25... Rxc8 {[%clk 0:00:21.5]} 26. Bd5 {[%clk 0:01:25.5]}
26... Bxd5 {[%clk 0:00:16.6]} 27. cxd5 {[%clk 0:01:23.6]} 27... Rxc1 {[%clk
0:00:17.2]} 28. Rxc1 {[%clk 0:01:22]} 28... Qd7 {[%clk 0:00:17.5]} 29. Qa5
{[%clk 0:00:47.9]} 29... Nxe2 {[%clk 0:00:14.5]} 30. Rc7 {[%clk 0:00:46.4]}
30... Qf5 {[%clk 0:00:14.3]} 31. Qd2 {[%clk 0:00:36.1]} 31... Nd4 {[%clk
0:00:10]} 32. Bxd4 {[%clk 0:00:32.5]} 32... exd4 {[%clk 0:00:10.9]} 33. Qf4
{[%clk 0:00:29.3]} 33... Qxf4 {[%clk 0:00:03]} 34. gxf4 {[%clk 0:00:28.1]} 34...
d3 {[%clk 0:00:03.9]} 35. Rc1 {[%clk 0:00:25.4]} 1-0

[Event "Late-Titled-Tuesday-Blitz-February-13-2024"]
[Site "Chess.com"]
[Date "2024.02.13"]
[Round "5"]
[White "szefru"]
[Black "Walter_White_Poland"]
[Result "1-0"]
[WhiteElo "2266"]
[BlackElo "2423"]
[TimeControl "180+1"]
[EndTime "14:55:33 PST"]
[Termination "szefru won by resignation"]

1. e4 {[%clk 0:02:49.3]} 1... e5 {[%clk 0:02:59.6]} 2. Nf3 {[%clk 0:02:48.5]}
2... Nc6 {[%clk 0:02:59.3]} 3. Bb5 {[%clk 0:02:48.2]} 3... a6 {[%clk 0:02:59.2]}
4. Ba4 {[%clk 0:02:46.5]} 4... Nge7 {[%clk 0:02:59.2]} 5. O-O {[%clk 0:02:45.5]}
5... g6 {[%clk 0:02:59.2]} 6. d4 {[%clk 0:02:43.1]} 6... exd4 {[%clk 0:02:56.5]}
7. Nxd4 {[%clk 0:02:43.1]} 7... Bg7 {[%clk 0:02:55.9]} 8. c3 {[%clk 0:02:37.9]}
8... O-O {[%clk 0:02:54.2]} 9. Bg5 {[%clk 0:02:37.2]} 9... h6 {[%clk 0:02:40.7]}
10. Nxc6 {[%clk 0:02:37.1]} 10... bxc6 {[%clk 0:02:38.1]} 11. Bh4 {[%clk
0:02:35.8]} 11... Rb8 {[%clk 0:02:28.4]} 12. Bb3 {[%clk 0:02:27.8]} 12... g5
{[%clk 0:02:26.1]} 13. Bg3 {[%clk 0:02:26.9]} 13... Ng6 {[%clk 0:02:25.7]} 14.
Nd2 {[%clk 0:02:22.5]} 14... d6 {[%clk 0:02:21.5]} 15. Qh5 {[%clk 0:02:13]}
15... Kh7 {[%clk 0:02:17.2]} 16. f4 {[%clk 0:02:07.5]} 16... gxf4 {[%clk
0:02:02.9]} 17. Bxf4 {[%clk 0:02:07.4]} 17... Rb5 {[%clk 0:02:00.9]} 18. Qf3
{[%clk 0:01:57.3]} 18... Be6 {[%clk 0:01:38.6]} 19. c4 {[%clk 0:01:50.4]} 19...
Ra5 {[%clk 0:01:08.4]} 20. Rad1 {[%clk 0:01:49.5]} 20... Nxf4 {[%clk 0:01:05.2]}
21. Qxf4 {[%clk 0:01:48.1]} 21... Qg5 {[%clk 0:01:02.1]} 22. Qf2 {[%clk
0:01:17.4]} 22... Qe7 {[%clk 0:00:47.1]} 23. Nf3 {[%clk 0:01:16.8]} 23... Rh5
{[%clk 0:00:44.4]} 24. Bc2 {[%clk 0:01:09.4]} 24... Be5 {[%clk 0:00:40.5]} 25.
Nxe5 {[%clk 0:01:08.7]} 25... Rxe5 {[%clk 0:00:40.4]} 26. b3 {[%clk 0:01:08.5]}
26... Rg8 {[%clk 0:00:39.4]} 27. Kh1 {[%clk 0:01:07.4]} 27... Qg5 {[%clk
0:00:38.2]} 28. Rd3 {[%clk 0:01:02.2]} 28... Qh5 {[%clk 0:00:23.5]} 29. Rf3
{[%clk 0:00:48.7]} 29... Kh8 {[%clk 0:00:21.2]} 30. Rf6 {[%clk 0:00:47.1]} 30...
Reg5 {[%clk 0:00:17.7]} 31. Qf4 {[%clk 0:00:39.6]} 31... Kg7 {[%clk 0:00:13]}
32. Bd1 {[%clk 0:00:34.8]} 32... Bg4 {[%clk 0:00:07.6]} 33. Rxf7+ {[%clk
0:00:33.5]} 33... Kh8 {[%clk 0:00:07.5]} 34. Qf6+ {[%clk 0:00:31.8]} 34... R5g7
{[%clk 0:00:07.7]} 35. Bxg4 {[%clk 0:00:29.9]} 35... Qxg4 {[%clk 0:00:07.4]} 36.
Qxh6+ {[%clk 0:00:30.1]} 1-0

[Event "Late-Titled-Tuesday-Blitz-February-13-2024"]
[Site "Chess.com"]
[Date "2024.02.13"]
[Round "5"]
[White "sari07"]
[Black "aqibjbutt"]
[Result "0-1"]
[WhiteElo "2394"]
[BlackElo "2087"]
[TimeControl "180+1"]
[EndTime "14:55:35 PST"]
[Termination "aqibjbutt won on time"]

1. d4 {[%clk 0:03:00.9]} 1... c6 {[%clk 0:03:00]} 2. Nc3 {[%clk 0:02:59.1]} 2...
d5 {[%clk 0:02:59.6]} 3. Bf4 {[%clk 0:02:55.5]} 3... Nf6 {[%clk 0:03:00]} 4. e3
{[%clk 0:02:53.6]} 4... Bf5 {[%clk 0:02:59.9]} 5. f3 {[%clk 0:02:53.3]} 5... Bg6
{[%clk 0:02:59.8]} 6. g4 {[%clk 0:02:51.7]} 6... e6 {[%clk 0:02:59.5]} 7. h4
{[%clk 0:02:49.4]} 7... h5 {[%clk 0:02:59.4]} 8. g5 {[%clk 0:02:48.1]} 8... Nfd7
{[%clk 0:02:58.8]} 9. Bd3 {[%clk 0:02:48.7]} 9... Bxd3 {[%clk 0:02:57.8]} 10.
Qxd3 {[%clk 0:02:49.6]} 10... g6 {[%clk 0:02:58.3]} 11. e4 {[%clk 0:02:34.3]}
11... Qb6 {[%clk 0:02:40.4]} 12. O-O-O {[%clk 0:02:33]} 12... Qa6 {[%clk
0:02:36.2]} 13. Qe3 {[%clk 0:02:25.9]} 13... Nb6 {[%clk 0:02:31.1]} 14. Kb1
{[%clk 0:01:26.2]} 14... Bb4 {[%clk 0:01:52]} 15. Nge2 {[%clk 0:01:23.8]} 15...
N8d7 {[%clk 0:01:32.3]} 16. Qc1 {[%clk 0:01:15.6]} 16... Nc4 {[%clk 0:01:26.4]}
17. Rd3 {[%clk 0:00:51.6]} 17... b5 {[%clk 0:01:11.6]} 18. b3 {[%clk 0:00:13.6]}
18... Ba3 {[%clk 0:01:05.3]} 19. Qd1 {[%clk 0:00:12.1]} 19... Nb2 {[%clk
0:01:03.4]} 20. Qd2 {[%clk 0:00:09.7]} 20... Nxd3 {[%clk 0:01:03.5]} 21. cxd3
{[%clk 0:00:07.2]} 21... Bb4 {[%clk 0:01:02.1]} 22. Qc2 {[%clk 0:00:05]} 22...
O-O {[%clk 0:00:55.3]} 23. Ng3 {[%clk 0:00:05.1]} 23... Rfc8 {[%clk 0:00:54.2]}
24. Nce2 {[%clk 0:00:03.6]} 24... c5 {[%clk 0:00:53.1]} 25. Qb2 {[%clk 0:00:03]}
25... cxd4 {[%clk 0:00:26.7]} 26. Qxd4 {[%clk 0:00:01.2]} 26... Bc5 {[%clk
0:00:27.2]} 27. Qb2 {[%clk 0:00:01.1]} 27... Bd6 {[%clk 0:00:18.3]} 0-1

[Event "Late-Titled-Tuesday-Blitz-February-13-2024"]
[Site "Chess.com"]
[Date "2024.02.13"]
[Round "5"]
[White "TanitoluwaAps116"]
[Black "dosto07"]
[Result "1-0"]
[WhiteElo "2780"]
[BlackElo "2534"]
[TimeControl "180+1"]
[EndTime "14:55:38 PST"]
[Termination "TanitoluwaAps116 won by resignation"]

1. Nf3 {[%clk 0:02:55.9]} 1... d5 {[%clk 0:02:57.7]} 2. b3 {[%clk 0:02:55]} 2...
Nf6 {[%clk 0:02:57.3]} 3. Bb2 {[%clk 0:02:54.4]} 3... Bg4 {[%clk 0:02:57.8]} 4.
e3 {[%clk 0:02:52.5]} 4... Nbd7 {[%clk 0:02:54.8]} 5. d4 {[%clk 0:02:52.2]} 5...
e6 {[%clk 0:02:54.7]} 6. Nbd2 {[%clk 0:02:52.6]} 6... Bd6 {[%clk 0:02:54.8]} 7.
h3 {[%clk 0:02:53.2]} 7... Bh5 {[%clk 0:02:53.8]} 8. Bd3 {[%clk 0:02:52.7]} 8...
O-O {[%clk 0:02:50.6]} 9. c4 {[%clk 0:02:47.2]} 9... c6 {[%clk 0:02:50.6]} 10.
Qc2 {[%clk 0:02:45.4]} 10... Qe7 {[%clk 0:02:48.4]} 11. Ne5 {[%clk 0:02:42.4]}
11... Bg6 {[%clk 0:02:41.7]} 12. f4 {[%clk 0:02:33.5]} 12... Ba3 {[%clk
0:02:37.9]} 13. Bc3 {[%clk 0:02:23.5]} 13... Bb4 {[%clk 0:02:37.3]} 14. O-O
{[%clk 0:02:14.2]} 14... Bxd3 {[%clk 0:02:13.3]} 15. Nxd3 {[%clk 0:02:13.5]}
15... Bxc3 {[%clk 0:02:12.7]} 16. Qxc3 {[%clk 0:02:14.4]} 16... Rac8 {[%clk
0:02:01.8]} 17. b4 {[%clk 0:02:11.2]} 17... dxc4 {[%clk 0:01:57.1]} 18. Qxc4
{[%clk 0:02:09.6]} 18... Nd5 {[%clk 0:01:54.7]} 19. Rae1 {[%clk 0:02:07]} 19...
a5 {[%clk 0:01:48.6]} 20. bxa5 {[%clk 0:01:56.9]} 20... c5 {[%clk 0:01:46.1]}
21. Ne4 {[%clk 0:01:14]} 21... cxd4 {[%clk 0:01:43.9]} 22. Qxd4 {[%clk
0:01:14.9]} 22... Qa3 {[%clk 0:01:34.4]} 23. f5 {[%clk 0:01:07.9]} 23... Qxa5
{[%clk 0:01:22.8]} 24. fxe6 {[%clk 0:01:03]} 24... fxe6 {[%clk 0:01:22.9]} 25.
Ng5 {[%clk 0:00:54.9]} 25... Rxf1+ {[%clk 0:00:58.4]} 26. Rxf1 {[%clk
0:00:53.7]} 26... Qc3 {[%clk 0:00:57.4]} 27. Rc1 {[%clk 0:00:20.4]} 27... Qxc1+
{[%clk 0:00:50.8]} 28. Nxc1 {[%clk 0:00:21.3]} 28... Rxc1+ {[%clk 0:00:50.9]}
29. Kh2 {[%clk 0:00:21.8]} 29... Nf8 {[%clk 0:00:36.2]} 30. Nxe6 {[%clk
0:00:20.4]} 30... Nxe6 {[%clk 0:00:36.4]} 31. Qxd5 {[%clk 0:00:20.6]} 31... Kf7
{[%clk 0:00:35.3]} 32. Qxb7+ {[%clk 0:00:20.8]} 32... Rc7 {[%clk 0:00:34.6]} 33.
Qd5 {[%clk 0:00:21.4]} 33... Kf6 {[%clk 0:00:34.6]} 34. a4 {[%clk 0:00:21]}
34... Ra7 {[%clk 0:00:29.2]} 35. a5 {[%clk 0:00:20.7]} 35... Ke7 {[%clk
0:00:24.8]} 36. Qb5 {[%clk 0:00:20.6]} 36... Kd8 {[%clk 0:00:21.8]} 37. Qb6+
{[%clk 0:00:20.4]} 37... Rc7 {[%clk 0:00:19.4]} 38. a6 {[%clk 0:00:18.6]} 38...
Nc5 {[%clk 0:00:13.2]} 39. a7 {[%clk 0:00:17.9]} 39... Kd7 {[%clk 0:00:12.9]}
40. a8=Q {[%clk 0:00:18.8]} 1-0

[Event "Late-Titled-Tuesday-Blitz-February-13-2024"]
[Site "Chess.com"]
[Date "2024.02.13"]
[Round "5"]
[White "Hirna2005"]
[Black "Championnn-9"]
[Result "0-1"]
[WhiteElo "2304"]
[BlackElo "2528"]
[TimeControl "180+1"]
[EndTime "14:55:39 PST"]
[Termination "Championnn-9 won by resignation"]

1. e4 {[%clk 0:02:55.4]} 1... c5 {[%clk 0:02:58.7]} 2. c3 {[%clk 0:02:54.9]}
2... Nf6 {[%clk 0:02:55]} 3. e5 {[%clk 0:02:55.1]} 3... Nd5 {[%clk 0:02:54.8]}
4. Nf3 {[%clk 0:02:55.4]} 4... Nc6 {[%clk 0:02:54.4]} 5. Bc4 {[%clk 0:02:55.3]}
5... Nb6 {[%clk 0:02:54.2]} 6. Bb3 {[%clk 0:02:55.6]} 6... d5 {[%clk 0:02:50.9]}
7. exd6 {[%clk 0:02:54.9]} 7... Qxd6 {[%clk 0:02:51.6]} 8. O-O {[%clk
0:02:55.1]} 8... Bf5 {[%clk 0:02:49.9]} 9. d4 {[%clk 0:02:48.3]} 9... cxd4
{[%clk 0:02:48.9]} 10. Nxd4 {[%clk 0:02:47.2]} 10... Nxd4 {[%clk 0:02:47.7]} 11.
cxd4 {[%clk 0:02:47.2]} 11... e6 {[%clk 0:02:46.4]} 12. Nc3 {[%clk 0:02:45.6]}
12... Be7 {[%clk 0:02:45.1]} 13. Qf3 {[%clk 0:02:38.5]} 13... O-O {[%clk
0:02:35.4]} 14. Qxb7 {[%clk 0:02:30.8]} 14... Bf6 {[%clk 0:02:30.5]} 15. Be3
{[%clk 0:02:27.5]} 15... a5 {[%clk 0:02:20.1]} 16. Nb5 {[%clk 0:02:17.8]} 16...
Qb8 {[%clk 0:02:17]} 17. Qxb8 {[%clk 0:02:10.4]} 17... Rfxb8 {[%clk 0:02:14]}
18. a4 {[%clk 0:02:10.3]} 18... Be4 {[%clk 0:02:04.5]} 19. f3 {[%clk 0:02:02.6]}
19... Bd5 {[%clk 0:02:03]} 20. Bxd5 {[%clk 0:01:50.5]} 20... Nxd5 {[%clk
0:02:03.9]} 21. Bf2 {[%clk 0:01:50.5]} 21... Bg5 {[%clk 0:01:59.1]} 22. g3
{[%clk 0:01:46.6]} 22... Nb4 {[%clk 0:01:53.8]} 23. f4 {[%clk 0:01:41.9]} 23...
Bf6 {[%clk 0:01:54.1]} 24. Rac1 {[%clk 0:01:36.6]} 24... Rc8 {[%clk 0:01:41.9]}
25. Rfd1 {[%clk 0:01:25.2]} 25... h6 {[%clk 0:01:25.7]} 26. Rc3 {[%clk
0:01:23.5]} 26... Nd5 {[%clk 0:01:23.7]} 27. Rcc1 {[%clk 0:01:15.1]} 27... Be7
{[%clk 0:01:22.3]} 28. Kf1 {[%clk 0:01:08.6]} 28... g5 {[%clk 0:01:18.7]} 29.
fxg5 {[%clk 0:00:57.2]} 29... Bxg5 {[%clk 0:01:19.6]} 30. Rc5 {[%clk 0:00:57.1]}
30... Be7 {[%clk 0:01:17.4]} 31. Rxc8+ {[%clk 0:00:51.4]} 31... Rxc8 {[%clk
0:01:16.9]} 32. Ke2 {[%clk 0:00:51.3]} 32... Bg5 {[%clk 0:01:16.3]} 33. Kd3
{[%clk 0:00:42.6]} 33... Nb4+ {[%clk 0:01:15.9]} 34. Ke4 {[%clk 0:00:42.9]}
34... Rc2 {[%clk 0:01:14]} 35. Bg1 {[%clk 0:00:33.6]} 35... Rxb2 {[%clk
0:01:09.7]} 36. h4 {[%clk 0:00:33.6]} 36... Be7 {[%clk 0:01:02.8]} 37. Rc1
{[%clk 0:00:33.6]} 37... Nd5 {[%clk 0:00:52.4]} 38. Nc7 {[%clk 0:00:25.3]} 38...
Nf6+ {[%clk 0:00:46.4]} 39. Kf3 {[%clk 0:00:25]} 39... Rb3+ {[%clk 0:00:45.6]}
40. Kg2 {[%clk 0:00:24.9]} 40... Ne4 {[%clk 0:00:44.7]} 41. d5 {[%clk
0:00:22.8]} 41... Rxg3+ {[%clk 0:00:43.3]} 42. Kh2 {[%clk 0:00:23.3]} 42... Bd6
{[%clk 0:00:41.8]} 43. Ne8 {[%clk 0:00:23]} 43... Bf4 {[%clk 0:00:35.9]} 44. Rc8
{[%clk 0:00:13.1]} 44... Rc3+ {[%clk 0:00:33.1]} 45. Kh1 {[%clk 0:00:13.2]}
45... Rxc8 {[%clk 0:00:33.1]} 46. dxe6 {[%clk 0:00:13.3]} 46... Rxe8 {[%clk
0:00:32.8]} 0-1

[Event "Late-Titled-Tuesday-Blitz-February-13-2024"]
[Site "Chess.com"]
[Date "2024.02.13"]
[Round "5"]
[White "koncheto"]
[Black "FM_Kappeler"]
[Result "1-0"]
[WhiteElo "2487"]
[BlackElo "2260"]
[TimeControl "180+1"]
[EndTime "14:55:39 PST"]
[Termination "koncheto won by resignation"]

1. e4 {[%clk 0:03:00.9]} 1... c5 {[%clk 0:02:59.3]} 2. Nf3 {[%clk 0:03:01]} 2...
Nc6 {[%clk 0:02:59.5]} 3. d4 {[%clk 0:03:01.6]} 3... cxd4 {[%clk 0:02:59.5]} 4.
Nxd4 {[%clk 0:03:02.5]} 4... e5 {[%clk 0:02:59.8]} 5. Nb5 {[%clk 0:03:01.7]}
5... a6 {[%clk 0:03:00.2]} 6. Nd6+ {[%clk 0:02:56]} 6... Bxd6 {[%clk 0:03:00.7]}
7. Qxd6 {[%clk 0:02:56.9]} 7... Qf6 {[%clk 0:03:00.7]} 8. Qxf6 {[%clk 0:02:51]}
8... Nxf6 {[%clk 0:03:00.8]} 9. Nc3 {[%clk 0:02:51.9]} 9... Nb4 {[%clk
0:02:51.5]} 10. Bd3 {[%clk 0:02:49]} 10... d6 {[%clk 0:02:49.2]} 11. Bg5 {[%clk
0:02:46.3]} 11... Be6 {[%clk 0:02:47.8]} 12. O-O-O {[%clk 0:02:43.9]} 12... Rc8
{[%clk 0:02:36.7]} 13. a3 {[%clk 0:02:42.7]} 13... Nxd3+ {[%clk 0:02:35.7]} 14.
Rxd3 {[%clk 0:02:43.6]} 14... Rc6 {[%clk 0:02:34.2]} 15. f3 {[%clk 0:02:29]}
15... Kd7 {[%clk 0:02:18]} 16. Rhd1 {[%clk 0:02:28.6]} 16... Rhc8 {[%clk
0:02:16.2]} 17. R1d2 {[%clk 0:02:22.4]} 17... Ne8 {[%clk 0:02:06.6]} 18. g4
{[%clk 0:02:17.7]} 18... Nc7 {[%clk 0:02:02.3]} 19. Be3 {[%clk 0:02:04.5]} 19...
Bc4 {[%clk 0:01:58]} 20. Rd5 {[%clk 0:01:31.4]} 20... Bxd5 {[%clk 0:01:57.4]}
21. exd5 {[%clk 0:01:30.1]} 21... Rc4 {[%clk 0:01:54.5]} 22. Ne2 {[%clk
0:01:26.7]} 22... Nb5 {[%clk 0:01:44.2]} 23. b3 {[%clk 0:01:15.9]} 23... Nxa3
{[%clk 0:01:41.7]} 24. bxc4 {[%clk 0:01:13.5]} 24... Nxc4 {[%clk 0:01:40.6]} 25.
Rd3 {[%clk 0:01:13.9]} 25... a5 {[%clk 0:01:30.8]} 26. Nc3 {[%clk 0:01:11.9]}
26... Ra8 {[%clk 0:01:25.1]} 27. Na4 {[%clk 0:01:11.5]} 27... Ra6 {[%clk
0:01:24.4]} 28. Rc3 {[%clk 0:01:11.4]} 28... b5 {[%clk 0:01:23.6]} 29. Bf2
{[%clk 0:01:03.5]} 29... g6 {[%clk 0:01:10.5]} 30. Nb6+ {[%clk 0:01:00.7]} 30...
Rxb6 {[%clk 0:00:55.8]} 31. Rxc4 {[%clk 0:01:00.7]} 31... Ra6 {[%clk 0:00:50.7]}
32. Rc3 {[%clk 0:01:00.9]} 32... a4 {[%clk 0:00:49.5]} 33. Kb2 {[%clk
0:01:01.3]} 33... f5 {[%clk 0:00:34.4]} 34. Ka3 {[%clk 0:00:52.8]} 34... fxg4
{[%clk 0:00:33.2]} 35. fxg4 {[%clk 0:00:53.7]} 35... Ra8 {[%clk 0:00:32.4]} 36.
Rh3 {[%clk 0:00:47.2]} 36... Rf8 {[%clk 0:00:25.4]} 37. Rxh7+ {[%clk 0:00:47]}
37... Kc8 {[%clk 0:00:25.1]} 38. Bb6 {[%clk 0:00:43]} 38... Rf3+ {[%clk
0:00:17.8]} 39. Kb4 {[%clk 0:00:43.1]} 39... a3 {[%clk 0:00:16.3]} 40. Kxb5
{[%clk 0:00:42.2]} 40... a2 {[%clk 0:00:09.9]} 41. Ra7 {[%clk 0:00:40.1]} 41...
Rh3 {[%clk 0:00:09.9]} 42. Rxa2 {[%clk 0:00:34.6]} 42... Rxh2 {[%clk 0:00:09.9]}
43. Kc6 {[%clk 0:00:34.3]} 1-0